bitfinex/quotes_BTCUSD_20250414
["timestamp","ask_amount","ask_price","bid_price","bid_amount"]
[1744657845031,4.6e-07,85130.0,85129.0,0.238937]
[1744657845227,4.6e-07,85130.0,85129.0,0.004]
[1744657845489,0.23493446,85130.0,85129.0,0.004]
[1744657845827,0.24210309,85130.0,85129.0,0.004]
[1744657846955,0.24210309,85130.0,85129.0,0.002]
[1744657847256,0.234945,85126.0,85124.0,0.011747]
[1744657847705,0.00715828,85125.0,85124.0,0.246698]
[1744657848156,0.011747,85122.0,85119.0,0.011748]
[1744657848484,0.234956,85123.0,85119.0,0.011748]
[1744657848485,0.00715,85121.0,85120.0,0.246708]
[1744657848887,0.246701,85123.0,85120.0,0.246708]
[1744657849107,0.0071307,85121.0,85120.0,0.246708]
[1744657849310,0.234989,85111.0,85107.0,0.246747]
[1744657849489,0.246727,85114.0,85110.0,0.011749]
[1744657849693,0.011749,85111.0,85106.0,0.01175]
[1744657849906,0.234987,85112.0,85109.0,0.234991]
[1744657850099,0.00709215,85110.0,85109.0,0.234991]
[1744657850307,0.246736,85112.0,85108.0,0.246742]
[1744657850513,0.00709215,85110.0,85108.0,0.246742]
[1744657850711,0.234987,85111.0,85108.0,0.246742]
[1744657850912,0.011751,85097.0,85092.0,0.011751]
[1744657851100,0.011751,85097.0,85094.0,0.235033]
[1744657851295,0.011751,85097.0,85094.0,0.246784]
[1744657851548,0.235023,85098.0,85095.0,0.246781]
[1744657851889,0.235026,85097.0,85094.0,0.246784]
[1744657852094,0.00705499,85097.0,85095.0,0.23503]
[1744657852493,0.011751,85094.0,85091.0,0.246794]
[1744657852613,0.25383399,85097.0,85090.0,0.011752]
[1744657852814,0.246785,85094.0,85091.0,0.011752]
[1744657853062,0.011751,85093.0,85090.0,0.246796]
[1744657853263,0.0187977,85093.0,85090.0,0.011752]
[1744657853464,0.23504,85092.0,85090.0,0.011752]
[1744657853677,0.00704463,85092.0,85091.0,0.23504]
[1744657854087,0.246785,85094.0,85091.0,0.23604]
[1744657854289,0.00704463,85092.0,85091.0,0.23504]
[1744657854494,0.246785,85094.0,85091.0,0.23504]
[1744657855015,0.0070467,85093.0,85091.0,0.23504]
[1744657855216,0.0070467,85093.0,85092.0,0.235039]
[1744657855452,0.0070467,85093.0,85092.0,0.283839]
[1744657855614,0.011748,85120.0,85112.0,0.234984]
[1744657855799,0.234973,85116.0,85112.0,0.234984]
[1744657855999,0.14632506,85113.0,85112.0,0.234984]
[1744657856404,0.14632506,85113.0,85111.0,0.234986]
[1744657856621,0.38130706,85113.0,85110.0,0.011749]
[1744657856799,0.38130706,85113.0,85110.0,0.246738]
[1744657857503,0.39305606,85113.0,85110.0,0.011749]
[1744657857662,0.234995,85108.0,85104.0,0.246756]
[1744657857893,0.011749,85112.0,85080.0,0.58283041]
[1744657857894,0.011751,85095.0,85091.0,0.011752]
[1744657858114,0.14632506,85113.0,85087.0,0.0456]
[1744657858115,0.235048,85089.0,85087.0,0.235053]
[1744657858432,0.00689492,85088.0,85087.0,0.246805]
[1744657858635,0.011751,85092.0,85090.0,0.235044]
[1744657858843,0.235059,85085.0,85084.0,0.0008448]
[1744657859163,0.24192552,85085.0,85084.0,0.0008448]
[1744657862928,0.36276706,85085.0,85084.0,0.0008448]
[1744657863127,0.76340791,85085.0,85084.0,0.0008448]
[1744657863363,0.76440791,85085.0,85084.0,0.0008448]
[1744657864099,0.74986706,85085.0,85084.0,0.0008448]
[1744657864327,0.70376706,85085.0,85084.0,0.0008448]
[1744657864647,0.24292552,85085.0,85084.0,0.0008448]
[1744657865411,0.24192552,85085.0,85084.0,0.0008448]
[1744657865715,0.24292552,85085.0,85084.0,0.0008448]
[1744657866270,0.24192552,85085.0,85084.0,0.0008448]
[1744657866474,0.24292552,85085.0,85084.0,0.0008448]
[1744657872610,0.38228552,85085.0,85084.0,0.0008448]
[1744657873158,0.89192706,85085.0,85084.0,0.0008448]
[1744657873760,0.90646791,85085.0,85084.0,0.0008448]
[1744657874021,0.95596791,85085.0,85084.0,0.0008448]
[1744657874430,1.36686791,85085.0,85084.0,0.0008448]
[1744657874829,1.36586791,85085.0,85084.0,0.0008448]
[1744657875005,1.36686791,85085.0,85084.0,0.0008448]
[1744657875413,1.31806791,85085.0,85084.0,0.0008448]
[1744657875813,1.30352706,85085.0,85084.0,0.0008448]
[1744657876217,1.30252706,85085.0,85084.0,0.0008448]
[1744657876429,1.30352706,85085.0,85084.0,0.0008448]
[1744657878955,0.91402706,85085.0,85084.0,0.0008448]
[1744657879311,0.50312706,85085.0,85084.0,0.0008448]
[1744657879519,0.14722652,85085.0,85084.0,0.0008448]
[1744657879730,0.14722652,85085.0,85084.0,0.2359058]
[1744657879961,0.38428552,85085.0,85084.0,0.0008448]
[1744657880606,0.38328552,85085.0,85084.0,0.0008448]
[1744657880809,0.00886652,85085.0,85084.0,0.2359058]
[1744657880983,0.14826652,85085.0,85084.0,0.0008448]
[1744657881186,0.38332552,85085.0,85084.0,0.0008448]
[1744657881547,0.38432552,85085.0,85084.0,0.0008448]
[1744657881748,0.38232552,85085.0,85084.0,0.0008448]
[1744657881949,0.38132552,85085.0,85084.0,0.0008448]
[1744657882088,0.38432552,85085.0,85084.0,0.0008448]
[1744657882275,0.00986652,85085.0,85084.0,0.0008448]
[1744657882527,0.00986652,85085.0,85084.0,0.2833058]
[1744657882757,0.00882876,85112.0,85111.0,0.234987]
[1744657882973,0.00596208,85112.0,85111.0,0.234987]
[1744657883177,0.1394,85119.0,85117.0,0.23497]
[1744657883416,1.09972,85121.0,85120.0,0.234962]
[1744657883772,1.09972,85121.0,85119.0,0.234965]
[1744657883974,1.33468,85121.0,85118.0,0.011748]
[1744657884263,1.09972,85121.0,85118.0,0.011748]
[1744657884473,1.09972,85121.0,85119.0,0.234965]
[1744657885207,0.246693,85126.0,85118.0,0.246712]
[1744657885208,0.13936,85126.0,85125.0,0.234948]
[1744657885820,0.13936,85126.0,85110.0,0.0492]
[1744657885821,0.011747,85122.0,85110.0,0.0492]
[1744657886022,0.011748,85120.0,85110.0,0.060949]
[1744657886231,0.011748,85117.0,85110.0,0.234989]
[1744657886573,0.011748,85115.0,85110.0,0.011749]
[1744657886854,0.011748,85115.0,85111.0,0.234986]
[1744657887059,0.246725,85115.0,85112.0,0.234983]
[1744657887267,0.234969,85118.0,85113.0,0.011749]
[1744657887416,0.011747,85123.0,85116.0,0.24672]
[1744657887665,0.13936,85126.0,85123.0,0.246699]
[1744657887867,0.13936,85126.0,85124.0,0.23495]
[1744657888896,0.13936,85126.0,85123.0,0.011747]
[1744657889127,0.13936,85126.0,85123.0,0.246699]
[1744657889351,0.13936,85126.0,85124.0,0.23495]
[1744657889799,0.13936,85126.0,85123.0,0.246699]
[1744657890027,0.374306,85126.0,85123.0,0.246699]
[1744657890256,0.00622027,85125.0,85123.0,0.246699]
[1744657890486,0.011748,85117.0,85110.0,0.011749]
[1744657890727,0.011749,85112.0,85107.0,0.011749]
[1744657890907,0.01175,85106.0,85096.0,0.0462]
[1744657891100,0.01175,85106.0,85083.0,0.376101]
[1744657891101,0.01175,85102.0,85099.0,0.246771]
[1744657891688,0.00615356,85101.0,85090.0,0.011752]
[1744657891922,0.00615356,85101.0,85085.0,0.235058]
[1744657891923,0.246792,85092.0,85085.0,0.235058]
[1744657892137,0.246797,85090.0,85086.0,0.246807]
[1744657892591,0.246797,85090.0,85085.0,0.24681]
[1744657892592,0.011752,85087.0,85083.0,0.011753]
[1744657892851,0.011752,85088.0,85085.0,0.235058]
[1744657893087,0.00610132,85086.0,85085.0,0.235058]
[1744657893331,0.246803,85088.0,85085.0,0.235058]
[1744657893553,0.00610132,85086.0,85085.0,0.235058]
[1744657893781,0.246802,85090.0,85085.0,0.235058]
[1744657893782,0.246802,85090.0,85085.0,0.24681]
[1744657893982,0.00610132,85086.0,85085.0,0.24681]
[1744657894201,0.011752,85089.0,85086.0,0.235055]
[1744657894751,0.246805,85088.0,85086.0,0.005]
[1744657895202,0.011752,85088.0,85085.0,0.24781]
[1744657895402,0.011752,85088.0,85086.0,0.001]
[1744657895570,0.011752,85088.0,85086.0,0.235054]
[1744657895918,0.011752,85088.0,85086.0,0.237054]
[1744657896353,0.011752,85090.0,85087.0,0.235053]
[1744657896552,0.23504,85092.0,85088.0,0.235049]
[1744657896737,0.23504,85092.0,85089.0,0.235047]
[1744657896877,0.246791,85092.0,85088.0,0.246801]
[1744657897076,0.011752,85091.0,85088.0,0.246801]
[1744657897278,0.011751,85092.0,85088.0,0.011752]
[1744657897479,0.246785,85094.0,85089.0,0.235048]
[1744657897726,0.235046,85090.0,85088.0,0.011752]
[1744657897944,0.235048,85089.0,85087.0,0.011752]
[1744657898120,0.2468,85089.0,85086.0,0.001]
[1744657898327,0.2468,85089.0,85086.0,0.235055]
[1744657898523,0.2468,85089.0,85085.0,0.246808]
[1744657898845,0.235031,85096.0,85092.0,0.235037]
[1744657899003,0.011751,85092.0,85088.0,0.246802]
[1744657899206,0.235045,85090.0,85087.0,0.246805]
[1744657899912,0.011752,85089.0,85086.0,0.248807]
[1744657900111,0.235053,85087.0,85086.0,0.002]
[1744657900316,0.235053,85087.0,85086.0,0.001]
[1744657900522,0.24115639,85087.0,85086.0,0.001]
[1744657900948,0.235059,85085.0,85084.0,0.0008448]
[1744657901349,0.70191595,85085.0,85084.0,0.0008448]
[1744657902328,0.70291595,85085.0,85084.0,0.0008448]
[1744657904169,0.00701541,85085.0,85084.0,0.0008448]
[1744657904374,0.00678644,85085.0,85084.0,0.2359058]
[1744657904776,0.001,85085.0,85084.0,0.2359058]
[1744657905133,0.235053,85087.0,85084.0,0.2476588]
[1744657905334,0.235059,85085.0,85084.0,0.0028448]
[1744657905560,0.235059,85085.0,85084.0,0.0038448]
[1744657905777,0.24100935,85085.0,85084.0,0.0038448]
[1744657906609,0.24100935,85085.0,85084.0,0.0018448]
[1744657907045,0.24200935,85085.0,85084.0,0.0008448]
[1744657907272,0.36285089,85085.0,85084.0,0.0018448]
[1744657908413,0.36285089,85085.0,85084.0,0.0008448]
[1744657912312,0.24200935,85085.0,85084.0,0.0008448]
[1744657912508,0.00695035,85085.0,85084.0,0.2835058]
[1744657913076,0.00695035,85085.0,85084.0,0.0484448]
[1744657913278,0.24200935,85085.0,85084.0,0.0484448]
[1744657913499,0.24200935,85085.0,85084.0,0.0008448]
[1744657913799,0.24100935,85085.0,85084.0,0.0018448]
[1744657913960,0.24100935,85085.0,85084.0,0.0038448]
[1744657914375,0.24100935,85085.0,85084.0,0.0008448]
[1744657918219,0.36185089,85085.0,85084.0,0.0008448]
[1744657919499,0.00595035,85085.0,85084.0,0.0008448]
[1744657919831,0.24100935,85085.0,85084.0,0.0008448]
[1744657920886,0.00595035,85085.0,85084.0,0.2359058]
[1744657921258,0.00595035,85085.0,85084.0,0.24324754]
[1744657922135,0.00595035,85085.0,85084.0,0.24524754]
[1744657922327,0.151032,85090.0,85087.0,0.246802]
[1744657922535,0.235048,85089.0,85088.0,0.00734174]
[1744657922733,0.151032,85090.0,85088.0,0.00734174]
[1744657922994,0.235048,85089.0,85088.0,0.00734174]
[1744657923234,0.235057,85086.0,85084.0,0.0135978]
[1744657923579,0.235057,85086.0,85085.0,0.00734143]
[1744657924661,0.235059,85085.0,85084.0,0.0028448]
[1744657924916,0.235059,85085.0,85084.0,0.0008448]
[1744657925842,0.236059,85085.0,85084.0,0.0008448]
[1744657929118,0.35690054,85085.0,85084.0,0.0008448]
[1744657929546,0.83216987,85085.0,85084.0,0.0008448]
[1744657929749,0.71144139,85085.0,85084.0,0.0008448]
[1744657933371,0.71735795,85085.0,85084.0,0.0008448]
[1744657933808,0.7028171,85085.0,85084.0,0.0008448]
[1744657935917,0.34691656,85085.0,85084.0,0.0008448]
[1744657936144,0.34691656,85085.0,85084.0,0.2359058]
[1744657936513,0.34691656,85085.0,85084.0,0.0008448]
[1744657936514,0.58197556,85085.0,85084.0,0.0008448]
[1744657936896,0.34691656,85085.0,85084.0,0.0008448]
[1744657937111,0.58197556,85085.0,85084.0,0.0008448]
[1744657942991,0.72121556,85085.0,85084.0,0.0008448]
[1744657945016,1.01248558,85085.0,85084.0,0.0008448]
[1744657945219,0.8917571,85085.0,85084.0,0.0008448]
[1744657945742,0.90629795,85085.0,85084.0,0.0008448]
[1744657946772,1.31719795,85085.0,85084.0,0.0008448]
[1744657957724,1.2529571,85085.0,85084.0,0.0008448]
[1744657957929,1.0178981,85085.0,85084.0,0.0008448]
[1744657958132,1.2529571,85085.0,85084.0,0.0008448]
[1744657958328,0.8420571,85085.0,85084.0,0.0008448]
[1744657959184,0.8410571,85085.0,85084.0,0.0008448]
[1744657963395,0.00591656,85085.0,85084.0,0.0008448]
[1744657963610,5.6e-07,85085.0,85084.0,0.2848058]
[1744657963868,0.011747,85123.0,85084.0,0.2848058]
[1744657963869,0.4109,85121.0,85119.0,0.234965]
[1744657964070,0.13916,85126.0,85119.0,0.234965]
[1744657964185,0.645823,85134.0,85119.0,0.234965]
[1744657964186,0.01155249,85130.0,85119.0,0.234965]
[1744657964384,0.011747,85127.0,85119.0,0.234965]
[1744657964599,0.011747,85125.0,85119.0,0.234965]
[1744657964794,0.0024227,85120.0,85119.0,0.234965]
[1744657965240,0.0004227,85120.0,85119.0,0.234965]
[1744657966018,0.0024227,85120.0,85119.0,0.234965]
[1744657966628,0.0034227,85120.0,85119.0,0.234965]
[1744657967591,0.0004227,85120.0,85119.0,0.234965]
[1744657972012,0.0004227,85120.0,85109.0,0.246739]
[1744657972013,0.234982,85113.0,85109.0,0.246739]
[1744657972225,0.23497,85117.0,85112.0,0.246731]
[1744657972418,0.0004227,85120.0,85118.0,0.234966]
[1744657972614,0.011748,85119.0,85116.0,0.011748]
[1744657973063,0.0004227,85120.0,85117.0,0.246718]
[1744657973219,0.0004227,85120.0,85118.0,0.234965]
[1744657973835,0.00440146,85119.0,85118.0,0.234965]
[1744657974224,0.0004227,85120.0,85119.0,0.234965]
[1744657978767,0.0004227,85120.0,85119.0,0.330965]
[1744657984973,0.0004227,85120.0,85119.0,0.45180654]
[1744657985439,0.0004227,85120.0,85119.0,0.45914368]
[1744657985713,0.0004227,85120.0,85119.0,0.46281217]
[1744657987805,0.0004227,85136.0,85119.0,0.46281217]
[1744657987806,1.6e-07,85136.0,85129.0,0.34]
[1744657988006,4.6e-07,85141.0,85140.0,0.282007]
[1744657988213,4.6e-07,85141.0,85140.0,0.59538568]
[1744657988595,4.6e-07,85141.0,85140.0,0.59905417]
[1744657990422,4.6e-07,85141.0,85140.0,0.60405417]
[1744657990829,4.6e-07,85141.0,85140.0,0.60705417]
[1744658000439,4.6e-07,85141.0,85140.0,0.46805417]
[1744658004286,4.6e-07,85141.0,85140.0,0.46071703]
[1744658006299,0.00034506,85146.0,85145.0,0.234893]
[1744658006520,0.00034506,85146.0,85145.0,0.35573454]
[1744658007197,0.00034506,85146.0,85145.0,0.35940303]
[1744658007637,0.00034506,85146.0,85145.0,0.36140303]
[1744658008533,0.00034506,85146.0,85145.0,0.36440303]
[1744658010150,0.00034506,85146.0,85145.0,0.37609268]
[1744658014529,0.0004225,85153.0,85145.0,0.37609268]
[1744658014530,6e-08,85150.0,85149.0,0.234882]
[1744658014756,6e-08,85150.0,85149.0,0.35807194]
[1744658014950,6e-08,85150.0,85149.0,0.35572354]
[1744658016167,6e-08,85150.0,85149.0,0.35972354]
[1744658016656,6e-08,85150.0,85149.0,0.36172354]
[1744658016971,6e-08,85150.0,85149.0,0.36539203]
[1744658020448,6e-08,85150.0,85149.0,0.24455049]
[1744658022288,0.23487906,85150.0,85149.0,0.006]
[1744658022502,0.4048206,85150.0,85149.0,0.006]
[1744658022699,0.81203463,85150.0,85149.0,0.006]
[1744658022901,0.82089688,85150.0,85149.0,0.006]
[1744658023119,0.82089688,85150.0,85127.0,0.006]
[1744658023120,0.23494,85128.0,85127.0,0.006]
[1744658023356,0.33658751,85128.0,85127.0,0.006]
[1744658024723,0.45742905,85128.0,85127.0,0.012]
[1744658024941,0.48064291,85128.0,85127.0,0.012]
[1744658025155,0.48064291,85128.0,85127.0,0.006]
[1744658025812,0.48164291,85128.0,85127.0,0.006]
[1744658026228,0.48064291,85128.0,85127.0,0.006]
[1744658026601,0.48264291,85128.0,85127.0,0.006]
[1744658027003,0.48764291,85128.0,85127.0,0.006]
[1744658027412,0.49264291,85128.0,85127.0,0.006]
[1744658027617,0.49064291,85128.0,85127.0,0.006]
[1744658027960,0.49264291,85128.0,85127.0,0.006]
[1744658032062,0.235001,85106.0,85105.0,0.0008448]
[1744658032500,0.23978584,85106.0,85105.0,0.0008448]
[1744658034323,0.23978584,85106.0,85105.0,0.0028448]
[1744658034535,0.24078584,85106.0,85105.0,0.0028448]
[1744658034764,0.24078584,85106.0,85105.0,0.0008448]
[1744658035139,0.24178584,85106.0,85105.0,0.0008448]
[1744658037097,0.36262738,85106.0,85105.0,0.0008448]
[1744658037302,0.83689343,85106.0,85105.0,8e-07]
[1744658037565,1.12806823,85106.0,85105.0,8e-07]
[1744658037769,1.17562419,85106.0,85105.0,8e-07]
[1744658038324,1.17362419,85106.0,85105.0,8e-07]
[1744658038527,1.17762419,85106.0,85105.0,8e-07]
[1744658039534,1.17562419,85106.0,85105.0,8e-07]
[1744658040560,1.1368813,85106.0,85105.0,8e-07]
[1744658040761,1.2761213,85106.0,85105.0,8e-07]
[1744658040959,1.14473891,85106.0,85105.0,8e-07]
[1744658041427,1.14773891,85106.0,85105.0,8e-07]
[1744658041846,1.14373891,85106.0,85105.0,8e-07]
[1744658042438,1.14173891,85106.0,85105.0,8e-07]
[1744658042618,1.14373891,85106.0,85105.0,8e-07]
[1744658042858,1.14273891,85106.0,85105.0,8e-07]
[1744658043075,1.14473891,85106.0,85105.0,8e-07]
[1744658045079,1.40084978,85106.0,85105.0,8e-07]
[1744658045281,1.2801213,85106.0,85105.0,8e-07]
[1744658045661,0.235036,85093.0,85092.0,6e-07]
[1744658045866,0.29657685,85093.0,85092.0,6e-07]
[1744658046063,0.80471839,85093.0,85092.0,6e-07]
[1744658048275,0.81471839,85093.0,85092.0,6e-07]
[1744658048881,0.93544687,85093.0,85092.0,6e-07]
[1744658049288,1.34634687,85093.0,85092.0,6e-07]
[1744658050208,1.22561839,85093.0,85092.0,6e-07]
[1744658052782,1.21107754,85093.0,85092.0,6e-07]
[1744658053372,1.22561839,85093.0,85092.0,6e-07]
[1744658054454,2.32525839,85093.0,85092.0,6e-07]
[1744658055675,2.27795839,85093.0,85092.0,6e-07]
[1744658056139,2.39868687,85093.0,85092.0,6e-07]
[1744658056359,2.39468687,85093.0,85092.0,6e-07]
[1744658056557,2.27395839,85093.0,85092.0,6e-07]
[1744658056705,2.27095839,85093.0,85092.0,6e-07]
[1744658057056,2.27595839,85093.0,85092.0,6e-07]
[1744658057385,2.27295839,85093.0,85092.0,6e-07]
[1744658057578,2.44668687,85093.0,85092.0,6e-07]
[1744658057818,2.49458687,85093.0,85092.0,6e-07]
[1744658057946,2.49458687,85093.0,85084.0,0.0008448]
[1744658057947,0.63959985,85085.0,85084.0,4e-07]
[1744658058145,0.99512139,85085.0,85084.0,4e-07]
[1744658058741,0.63962385,85076.0,85075.0,0.25084106]
[1744658058943,1.17136539,85076.0,85075.0,0.25084106]
[1744658059188,1.26716539,85076.0,85075.0,0.25084106]
[1744658059395,1.26716539,85076.0,85041.0,0.002]
[1744658059396,0.58966585,85061.0,85041.0,0.002]
[1744658059593,0.35454085,85060.0,85059.0,2e-07]
[1744658059764,0.71051039,85060.0,85059.0,2e-07]
[1744658059966,0.58969585,85050.0,85049.0,5e-07]
[1744658060191,0.58969585,85050.0,85041.0,0.002]
[1744658060192,0.58969585,85050.0,85041.0,5e-07]
[1744658060193,0.575177,85042.0,85041.0,5e-07]
[1744658060379,0.84963939,85042.0,85041.0,5e-07]
[1744658061437,0.86121264,85042.0,85041.0,5e-07]
[1744658062041,0.86221264,85042.0,85041.0,5e-07]
[1744658063116,0.72313264,85042.0,85041.0,5e-07]
[1744658063319,0.86325264,85042.0,85041.0,5e-07]
[1744658063521,0.62807564,85042.0,85041.0,5e-07]
[1744658064556,0.61353479,85042.0,85041.0,5e-07]
[1744658065120,0.61353479,85042.0,85041.0,0.2351805]
[1744658065344,0.61253479,85042.0,85041.0,0.2351805]
[1744658066152,0.61153479,85042.0,85041.0,0.2351805]
[1744658067079,0.61153479,85042.0,85041.0,0.2361805]
[1744658069309,0.61153479,85042.0,85041.0,0.0010005]
[1744658070890,0.61153479,85042.0,85041.0,0.2361805]
[1744658071392,0.61153479,85042.0,85041.0,0.0010005]
[1744658072108,0.61153479,85042.0,85041.0,0.2361805]
[1744658072256,0.61153479,85042.0,85041.0,0.0010005]
[1744658072851,0.84671179,85042.0,85041.0,0.0010005]
[1744658073454,0.61153479,85042.0,85041.0,0.2351805]
[1744658073657,0.61153479,85042.0,85041.0,0.0010005]
[1744658074519,0.84671179,85042.0,85041.0,0.0010005]
[1744658083819,0.86125264,85042.0,85041.0,0.0010005]
[1744658084998,0.86125264,85042.0,85041.0,5e-07]
[1744658085208,0.86225264,85042.0,85041.0,5e-07]
[1744658085871,0.86325264,85042.0,85041.0,5e-07]
[1744658093222,0.84871179,85042.0,85041.0,5e-07]
[1744658093451,0.61353479,85042.0,85041.0,5e-07]
[1744658093664,0.84871179,85042.0,85041.0,5e-07]
[1744658099574,0.86325264,85042.0,85041.0,5e-07]
[1744658100187,0.91095264,85042.0,85041.0,5e-07]
[1744658100387,0.9439896,85042.0,85041.0,5e-07]
[1744658101236,1.3548896,85042.0,85041.0,5e-07]
[1744658101587,1.4048896,85042.0,85041.0,5e-07]
[1744658101807,1.41101234,85042.0,85041.0,5e-07]
[1744658102227,1.41101234,85042.0,85028.0,0.24998235]
[1744658102228,0.575213,85029.0,85028.0,0.24998235]
[1744658102451,1.25013235,85029.0,85028.0,0.24998235]
[1744658103469,1.25213235,85029.0,85028.0,0.24998235]
[1744658104403,1.17319539,85029.0,85028.0,0.24998235]
[1744658104573,1.12349539,85029.0,85028.0,0.24998235]
[1744658104977,1.13329713,85029.0,85028.0,0.24998235]
[1744658105977,1.13329713,85029.0,85028.0,0.24978406]
[1744658110931,1.27241713,85029.0,85028.0,0.24978406]
[1744658111165,0.93241713,85029.0,85028.0,0.24978406]
[1744658111598,0.50697628,85029.0,85028.0,0.29718406]
[1744658111803,0.27176328,85029.0,85028.0,0.29718406]
[1744658112018,0.003,85029.0,85028.0,0.53240006]
[1744658112905,0.238213,85029.0,85028.0,0.29718406]
[1744658113107,0.002,85029.0,85028.0,0.29718406]
[1744658113577,0.002,85029.0,85028.0,0.29818406]
[1744658113818,0.235213,85029.0,85028.0,0.29818406]
[1744658114839,0.00881382,85033.0,85032.0,0.235205]
[1744658115049,0.00881382,85033.0,85031.0,0.235208]
[1744658115282,0.386122,85034.0,85030.0,0.246971]
[1744658115490,0.235208,85031.0,85028.0,0.29818406]
[1744658115696,0.01176,85031.0,85028.0,0.29818406]
[1744658115893,0.235213,85030.0,85028.0,0.29818406]
[1744658116117,0.235213,85030.0,85028.0,0.29718406]
[1744658116504,0.235213,85029.0,85028.0,0.29718406]
[1744658116648,0.235213,85030.0,85028.0,0.29718406]
[1744658117072,0.235213,85029.0,85028.0,0.29818406]
[1744658117268,0.235213,85029.0,85028.0,0.29718406]
[1744658117469,0.35605454,85029.0,85028.0,0.25078406]
[1744658117896,0.35605454,85029.0,85028.0,0.24978406]
[1744658117897,0.71059539,85029.0,85028.0,0.24978406]
[1744658118122,0.71059539,85029.0,85028.0,0.25078406]
[1744658118321,1.12149539,85029.0,85028.0,6e-08]
[1744658119720,1.12149539,85029.0,85022.0,0.25003822]
[1744658119721,0.58977085,85023.0,85022.0,0.25003822]
[1744658119923,0.71061239,85023.0,85022.0,0.25003822]
[1744658121129,0.71161239,85023.0,85022.0,0.25003822]
[1744658121330,0.71261239,85023.0,85022.0,0.25003822]
[1744658122782,1.12351239,85023.0,85022.0,0.25003822]
[1744658125731,1.24424087,85023.0,85022.0,0.25003822]
[1744658125930,1.16891239,85023.0,85022.0,0.25003822]
[1744658126674,1.16891239,85023.0,85022.0,2.2e-07]
[1744658126853,0.58980085,85012.0,85011.0,0.002]
[1744658127029,0.84980239,85012.0,85011.0,0.002]
[1744658128773,0.85280239,85012.0,85011.0,0.002]
[1744658129933,0.85680239,85012.0,85011.0,0.002]
[1744658131366,1.26770239,85012.0,85011.0,0.002]
[1744658132996,0.58981485,85007.0,85006.0,6e-07]
[1744658133198,1.16745639,85007.0,85006.0,6e-07]
[1744658133402,1.12155639,85007.0,85006.0,6e-07]
[1744658133822,0.88628239,85007.0,85006.0,6e-07]
[1744658134057,1.12155639,85007.0,85006.0,6e-07]
[1744658134253,1.12355639,85007.0,85006.0,6e-07]
[1744658134748,1.12155639,85007.0,85006.0,6e-07]
[1744658135154,0.14880612,85007.0,85006.0,6e-07]
[1744658135364,0.001,85007.0,85006.0,0.2842776]
[1744658135556,0.13916,85014.0,85013.0,0.235258]
[1744658135755,0.13916,85014.0,85013.0,0.282058]
[1744658135958,1.23972,85025.0,85022.0,0.011761]
[1744658136177,1.60754854,85025.0,85022.0,0.0487]
[1744658136376,1.23316254,85025.0,85022.0,0.0487]
[1744658136716,0.01176,85031.0,85022.0,0.0487]
[1744658136717,0.011759,85035.0,85027.0,0.235219]
[1744658136923,0.26000154,85031.0,85026.0,0.246982]
[1744658137142,0.13916,85031.0,85028.0,0.01176]
[1744658137357,0.13916,85031.0,85030.0,0.235211]
[1744658137890,0.13916,85031.0,85029.0,0.235212]
[1744658138279,0.13916,85031.0,85030.0,0.235211]
[1744658138889,0.13916,85031.0,85028.0,0.01176]
[1744658139207,0.235211,85030.0,85026.0,0.24698]
[1744658139365,0.386129,85031.0,85027.0,0.246976]
[1744658139720,0.386129,85031.0,85030.0,0.001]
[1744658139943,0.13916,85031.0,85029.0,0.235212]
[1744658140376,0.374369,85031.0,85028.0,0.01176]
[1744658140782,0.386129,85031.0,85028.0,0.01176]
[1744658141015,0.13916,85031.0,85028.0,0.246976]
[1744658141244,0.13916,85031.0,85029.0,0.001]
[1744658141884,0.13912,85045.0,85034.0,0.2352]
[1744658142107,0.13912,85045.0,85036.0,0.011759]
[1744658142108,0.12084154,85041.0,85036.0,0.011759]
[1744658142337,0.246948,85038.0,85035.0,0.011759]
[1744658142791,0.235191,85037.0,85035.0,0.011759]
[1744658143012,0.235191,85037.0,85034.0,0.0481]
[1744658143013,0.235196,85036.0,85034.0,0.0481]
[1744658143458,0.235196,85036.0,85013.0,0.235255]
[1744658143459,0.235227,85024.0,85013.0,0.235255]
[1744658143673,0.011761,85020.0,85015.0,0.235252]
[1744658143888,0.246996,85022.0,85019.0,0.247001]
[1744658144082,0.235236,85021.0,85020.0,0.0452]
[1744658144304,0.235236,85021.0,85014.0,0.061662]
[1744658144305,0.235252,85015.0,85014.0,0.096]
[1744658144465,0.235252,85015.0,85003.0,0.048]
[1744658144667,0.235252,85015.0,84996.0,0.000846]
[1744658144668,0.235271,85008.0,85000.0,0.0461]
[1744658144909,0.235274,85007.0,85001.0,0.011764]
[1744658145323,0.235274,85007.0,85004.0,0.011764]
[1744658145519,0.235274,85007.0,85002.0,0.235287]
[1744658145728,0.235274,85007.0,85000.0,0.057864]
[1744658145932,0.235274,85007.0,85001.0,0.011764]
[1744658146134,0.235274,85007.0,85000.0,0.057864]
[1744658146335,0.235274,85007.0,85000.0,0.0461]
[1744658146541,0.35611554,85007.0,85006.0,0.0060006]
[1744658146946,0.35611554,85007.0,85006.0,0.0040006]
[1744658147347,0.35611554,85007.0,85006.0,0.0060006]
[1744658147549,0.37065639,85007.0,85006.0,0.0060006]
[1744658147965,0.71065639,85007.0,85006.0,0.0060006]
[1744658148584,0.71065639,85007.0,85006.0,0.0020006]
[1744658149024,0.71065639,85007.0,85006.0,0.0050006]
[1744658149220,0.71065639,85007.0,85006.0,0.0030006]
[1744658149439,0.71065639,85007.0,85006.0,6e-07]
[1744658149625,0.71065639,85007.0,85006.0,0.0020006]
[1744658150033,0.71065639,85007.0,85006.0,6e-07]
[1744658150319,0.71265639,85007.0,85006.0,6e-07]
[1744658150582,0.47838239,85007.0,85006.0,6e-07]
[1744658150762,0.12384154,85007.0,85006.0,6e-07]
[1744658150962,0.12384154,85007.0,85006.0,0.2813776]
[1744658150963,0.14212,85007.0,85006.0,0.2813776]
[1744658151524,0.14012,85007.0,85006.0,0.2813776]
[1744658151947,0.001,85007.0,85006.0,0.2833776]
[1744658152417,1.10064,85045.0,85043.0,0.235175]
[1744658152602,1.10064,85045.0,85039.0,0.011759]
[1744658152603,0.27171954,85044.0,85039.0,0.011759]
[1744658152806,0.27171954,85044.0,85030.0,0.01176]
[1744658152807,0.011759,85036.0,85031.0,0.246966]